[Event "Chinese League Division-A 2024"]
[Site "Fuling Chongqing"]
[Date "2024.07.02"]
[Round "6.23"]
[White "Meng, Yihan"]
[Black "Pang, Tao"]
[Result "1/2-1/2"]
[ECO "C01"]
[WhiteElo "2268"]
[BlackElo "2495"]
[Annotator "TA"]
[PlyCount "60"]
[EventDate "2024.06.28"]
[EventType "team-tourn"]
[EventCountry "CHN"]
[SourceTitle "playchess.com"]
[Source "ChessBase"]
[SourceQuality "1"]
[TimeControl "40/5400+30:1800+30"]

{[%evp 17,60,0,14,0,2,0,7,10,15,1,0,0,20,25,15,16,23,17,22,24,18,18,17,23,35,5,8,7,13,0,6,0,0,0,0,0,0,0,0,0,0,0,17,21,23]} 1. e4 {[%emt 0:00:03]} e6 {[%emt 0:00:07]} 2. d4 {[%emt 0:00:07]} d5 {[%emt 0:00:02]} 3. exd5 {[%emt 0:00:02]} exd5 {[%emt 0:00:03]} 4. Nf3 {[%emt 0:00:06]} Nf6 {[%emt 0:01:09]} 5. Bd3 {[%emt 0:00:07]} c5 {[%emt 0:00:48]} 6. dxc5 {[%emt 0:01:58]} Bxc5 {[%emt 0:00:13]} 7. O-O {[%emt 0:00:18]} O-O {[%emt 0:00:08]} 8. Nc3 {[%emt 0:04:05]} Nc6 {[%emt 0:11:56]} 9. h3 {[%emt 0:01:03]} h6 {[%emt 0:03:50]} 10. Bf4 {[%emt 0:00:40]} Be6 {[%emt 0:06:06]} 11. a3 {[%emt 0:03:18]} Re8 {[%emt 0:14:05]} 12. Qd2 {[%emt 0:09:20]} d4 {[%emt 0:01:41]} (12... Qd7 {feels hotter.} 13. Bxh6 Bxh3 14. Bxg7 Qg4) 13. Ne4 {[%emt 0:02:00]} Nxe4 {[%emt 0:00:48]} 14. Bxe4 {[%emt 0:00:05][%cal Of4h6]} Bd5 {[%emt 0:00:45]} 15. Bxd5 {[%emt 0:00:32]} Qxd5 {[%emt 0:00:04]} 16. Rfe1 {[%emt 0:11:18]} Qf5 {[%emt 0:02:21]} 17. Bg3 {[%emt 0:08:18]} a6 {[%emt 0:01:26]} 18. Rxe8+ {[%emt 0:03:29]} Rxe8 {[%emt 0:00:10]} 19. Re1 {[%emt 0:00:10]} Re6 {[%emt 0:02:47]} 20. Rxe6 {[%emt 0:02:21]} Qxe6 {[%emt 0:00:07]} 21. Ne1 {[%emt 0:02:27]} Bd6 {[%emt 0:01:52] The position is equal.} 22. Bxd6 {[%emt 0:00:56]} Qxd6 $11 {[%emt 0:00:01][%mdl 4096] Endgame. KQN-KQN} 23. Nf3 {[%emt 0:04:56]} Qc5 {[%emt 0:01:16]} 24. Qd3 {[%emt 0:00:38]} Ne5 {[%emt 0:00:42]} 25. Nxe5 {[%emt 0:00:05]} Qxe5 {[%emt 0:00:05] KQ-KQ} 26. g3 {[%emt 0:00:59]} g6 {[%emt 0:00:13]} 27. h4 {[%emt 0:00:14]} h5 {[%emt 0:00:05]} 28. Kg2 {[%emt 0:00:44]} Kg7 {[%emt 0:00:27]} 29. Kf1 {[%emt 0:09:19]} Qd5 {[%emt 0:00:58]} 30. c3 {[%emt 0:00:33]} Qh1+ {[%emt 0:00:04] A rather calm draw.   Weighted Error Value: White=0.04 (flawless) /Black=0.04 (flawless) .  Inaccurate:     	White=1     	---        OK:         	White=9     	Black=6      Best:        	---       	Black=1} 1/2-1/2

[Event "Chinese League Division-A 2024"]
[Site "Fuling Chongqing"]
[Date "2024.07.02"]
[Round "6.24"]
[White "Song, Yuxin"]
[Black "Zhang, Xiaowen"]
[Result "1/2-1/2"]
[ECO "B40"]
[WhiteElo "2383"]
[BlackElo "2261"]
[Annotator "TA"]
[PlyCount "53"]
[EventDate "2024.06.28"]
[EventType "team-tourn"]
[EventCountry "CHN"]
[SourceTitle "playchess.com"]
[Source "ChessBase"]
[SourceQuality "1"]
[TimeControl "40/5400+30:1800+30"]

{[%evp 16,53,-7,-18,-12,-9,-21,-15,0,0,0,0,0,0,0,0,25,20,26,33,80,93,337,-31,-48,-25,-43,-31,0,0,0,0,0,0,0,0,0,0,0,0]} 1. e4 {[%emt 0:00:03]} e6 {[%emt 0:00:06]} 2. d4 {[%emt 0:00:09]} d5 {[%emt 0:00:04]} 3. Nd2 {[%emt 0:00:08]} c5 {[%emt 0:00:26]} 4. Ngf3 {[%emt 0:00:09]} cxd4 {[%emt 0:00:10]} 5. Nxd4 {[%emt 0:00:06]} Nc6 {[%emt 0:00:19]} 6. Nxc6 {[%emt 0:00:08]} bxc6 {[%emt 0:00:03]} 7. Bd3 {[%emt 0:00:09]} Nf6 {[%emt 0:00:11]} 8. O-O {[%emt 0:00:08]} Qc7 {[%emt 0:00:11]} 9. Qe2 {[%emt 0:00:24]} Bd6 {[%emt 0:00:16]} 10. h3 {[%emt 0:00:16]} O-O {[%emt 0:00:19]} 11. b3 {[%emt 0:00:12]} e5 {[%emt 0:09:27]} 12. Bb2 {[%emt 0:00:15]} Bb7 {[%emt 0:10:21]} 13. Rae1 {[%emt 0:06:21]} Rae8 {[%emt 0:04:15]} 14. f4 {[%emt 0:05:06]} Nd7 {[%emt 0:24:32][%cal Bf6d7,Bd7c5,Bc5d3][%mdl 32]} (14... exf4 $2 {is the wrong capture.} 15. Bxf6 gxf6 16. Qg4+ Kh8 17. exd5 $18) 15. Qh5 {[%emt 0:00:07]} Nc5 {[%emt 0:07:06]} (15... exf4 $2 {too greedy.} 16. exd5 g6 17. Qh6 $18) 16. exd5 {[%emt 0:06:11][%csl Gd3][%cal Rh5h7]} Nxd3 {[%emt 0:00:32]} 17. cxd3 {[%emt 0:00:03]} exf4 {[%emt 0:07:54]} (17... Bb4 $14 18. Rd1 cxd5 (18... exf4 19. Bxg7 Kxg7 20. Qg5+ Kh8 21. Qf6+ Kg8 22. Rxf4 $18)) 18. Ne4 $16 {[%emt 0:13:24] White is more active.} Be5 {[%emt 0:00:56] [#] Against Nf6+} (18... Rxe4 $16 19. dxe4 cxd5) 19. Ba3 $2 {[%emt 0:02:23]} (19. d6 $1 $18 {[%cal Rd6c7]} Qb6+ (19... Bxd6 20. Nf6+ gxf6 21. Qg4+ Kh8 22. Bxf6#) 20. Kh1) 19... cxd5 $15 {[%emt 0:02:05]} 20. Ng5 {[%emt 0:01:14][%csl Gg5][%cal Rh5h7] [#]} h6 $36 {[%emt 0:01:58][%mdl 2048] Black has the initiative.} 21. Bxf8 {[%emt 0:00:32]} hxg5 {[%emt 0:09:33]} 22. Bxg7 {[%emt 0:12:36] The position is equal.} Kxg7 {[%emt 0:00:53]} 23. Qxg5+ {[%emt 0:00:05]} Kh7 {[%emt 0:04:06]} (23... Kf8 $5 24. Qh6+ $8 Kg8 25. Qg5+ Kf8 26. Qh6+ Kg8 27. Qg5+ Kf8 $11) 24. Qh5+ {[%emt 0:02:22]} Kg7 {[%emt 0:00:08]} 25. Qg5+ {[%emt 0:00:42]} Kh7 {[%emt 0:00:05]} 26. Qh5+ {[%emt 0:00:13]} Kg7 {[%emt 0:00:08] aiming for ...Re7.} 27. Qg5+ {[%emt 0:00:05] Weighted Error Value: White=0.23 (precise) /Black=0.26 (precise) .  Loses game:     	---       	Black=1      Missed win:     	White=1     	---        Mistake:       	---       	Black=1      Inaccurate:     	---       	Black=1      OK:         	White=9     	Black=6      Best:        	White=3     	---} 1/2-1/2

[Event "Chinese League Division-A 2024"]
[Site "Fuling Chongqing"]
[Date "2024.07.02"]
[Round "6.25"]
[White "Ju, Wenjun"]
[Black "Li, Xueyi"]
[Result "1/2-1/2"]
[ECO "B12"]
[WhiteElo "2558"]
[BlackElo "2209"]
[Annotator "TA"]
[PlyCount "99"]
[EventDate "2024.06.28"]
[EventType "team-tourn"]
[EventCountry "CHN"]
[SourceTitle "playchess.com"]
[Source "ChessBase"]
[SourceQuality "1"]
[TimeControl "40/5400+30:1800+30"]

{[%evp 9,99,18,7,9,8,2,19,0,13,13,18,0,7,2,30,28,44,20,47,51,46,44,45,43,59,36,27,0,0,0,0,-8,-1,-1,0,0,0,0,0,0,0,0,0,0,0,0,0,0,0,0,0,0,0,0,0,0,0,0,0,0,0,0,0,0,0,0,0,0,0,0,0,0,0,0,0,0,0,0,0,0,0,0,0,0,0,0,0,0,0,0,0,0]} 1. e4 {[%emt 0:00:02]} c6 {[%emt 0:00:14]} 2. d4 {[%emt 0:00:04]} d5 {[%emt 0:00:04]} 3. e5 {[%emt 0:00:08]} Bf5 {[%emt 0:00:07]} 4. h4 {[%emt 0:00:33]} h5 {[%emt 0:00:42]} 5. Bd3 {[%emt 0:00:15]} Bxd3 {[%emt 0:00:38]} 6. Qxd3 {[%emt 0:00:03][%cal Oe5e6]} Qa5+ {[%emt 0:01:17]} 7. Nd2 {[%emt 0:00:16][%cal Oe5e6,Bb1d2,Bd2b3,Bb3a5][%mdl 32] aiming for e6!} e6 {[%emt 0:00:19]} 8. Ngf3 {[%emt 0:00:30]} Nh6 {[%emt 0:01:52]} 9. c3 {[%emt 0:01:46]} Qa6 {[%emt 0:00:08]} 10. Qxa6 {[%emt 0:00:34]} Nxa6 {[%emt 0:00:40]} 11. b4 {[%emt 0:00:04]} Nb8 {[%emt 0:09:36]} 12. Nb3 {[%emt 0:00:52]} Nd7 {[%emt 0:02:23]} 13. Na5 {[%emt 0:13:09]} O-O-O {[%emt 0:03:42]} 14. Bxh6 {[%emt 0:12:07]} gxh6 {[%emt 0:01:43]} 15. O-O {[%emt 0:00:02]} Be7 {[%emt 0:19:30]} 16. Nb3 {[%emt 0:03:59]} Rhg8 {[%emt 0:01:22]} 17. g3 {[%emt 0:16:00]} f6 {[%emt 0:12:04]} 18. Rae1 {[%emt 0:11:34][%cal Ba1e1,Be1e6,Be6h6][%mdl 32] Strongly threatening exf6.} fxe5 {[%emt 0:04:29] The position is equal.} 19. Nxe5 {[%emt 0:00:04]} Bxh4 {[%emt 0:02:16]} 20. Nxd7 {[%emt 0:00:05]} Rxd7 {[%emt 0:00:33]} 21. Rxe6 {[%emt 0:03:31]} Bd8 {[%emt 0:01:15]} 22. Rxh6 {[%emt 0:02:49]} h4 {[%emt 0:00:33]} 23. Kg2 {[%emt 0:00:12]} hxg3 {[%emt 0:00:29]} 24. fxg3 {[%emt 0:00:49]} Bc7 {[%emt 0:03:55]} 25. Rf3 {[%emt 0:10:42]} Rdg7 {[%emt 0:00:54]} 26. Rh3 {[%emt 0:00:03]} Re7 {[%emt 0:00:21]} 27. Kf2 {[%emt 0:04:57]} Rge8 {[%emt 0:00:12]} 28. Nc1 {[%emt 0:00:02]} a5 {[%emt 0:06:29]} 29. bxa5 {[%emt 0:01:55]} Bxa5 {[%emt 0:01:00]} 30. Rh1 {[%emt 0:00:12]} Bc7 {[%emt 0:06:34]} 31. Kg2 {[%emt 0:03:01]} Bd6 {[%emt 0:07:38]} 32. Rhf1 {[%emt 0:02:31]} Rg7 {[%emt 0:00:47]} 33. R1f2 {[%emt 0:03:15]} Rh8 {[%emt 0:07:44]} 34. Nd3 {[%emt 0:04:11]} Rhg8 {[%emt 0:00:34][%cal Rg7g3]} 35. Ne5 {[%emt 0:00:19]} Bxe5 {[%emt 0:00:38]} 36. dxe5 $11 {[%emt 0:00:02][%mdl 4096] Endgame. KRR-KRR} Kd7 {[%emt 0:00:08]} 37. Re3 {[%emt 0:00:55]} Ke6 {[%emt 0:00:09]} 38. Rf6+ {[%emt 0:00:45]} Ke7 {[%emt 0:00:20]} 39. Rf4 {[%emt 0:00:01]} Ke6 {[%emt 0:01:30]} 40. Kh3 {[%emt 0:00:00]} Rg6 {[%emt 0:00:00]} 41. a4 {[%emt 0:06:56]} c5 {[%emt 0:05:27]} 42. Rh4 {[%emt 0:05:00]} Rd8 {[%emt 0:03:06]} 43. Kg2 {[%emt 0:04:49]} d4 {[%emt 0:02:43]} 44. cxd4 {[%emt 0:00:01]} cxd4 {[%emt 0:00:08]} 45. Rd3 {[%emt 0:02:18]} Kxe5 {[%emt 0:01:02]} 46. Kf3 {[%emt 0:00:02]} Rf8+ {[%emt 0:00:47]} 47. Ke2 {[%emt 0:00:14]} Rfg8 {[%emt 0:01:12]} 48. Rhxd4 {[%emt 0:02:57]} Rxg3 {[%emt 0:00:27]} 49. Rd5+ {[%emt 0:00:02]} Ke6 {[%emt 0:00:23]} 50. Rd6+ {[%emt 0:00:02] Weighted Error Value: White=0.03 (flawless) /Black=0.02 (flawless) .  Inaccurate:     	White=1     	Black=2      OK:         	White=24    	Black=23     Best:        	---       	Black=2} 1/2-1/2

[Event "Chinese League Division-A 2024"]
[Site "Fuling Chongqing"]
[Date "2024.07.02"]
[Round "6.26"]
[White "Huang, Renjie"]
[Black "Xu, Yinglun"]
[Result "1/2-1/2"]
[ECO "C83"]
[WhiteElo "2480"]
[BlackElo "2526"]
[Annotator "TA"]
[PlyCount "59"]
[EventDate "2024.06.28"]
[EventType "team-tourn"]
[EventCountry "CHN"]
[SourceTitle "playchess.com"]
[Source "ChessBase"]
[SourceQuality "1"]
[TimeControl "40/5400+30:1800+30"]

{[%evp 21,59,17,21,-27,-18,-20,-30,-23,-34,-35,-32,-21,-28,-23,-34,-19,0,0,0,0,0,0,0,0,0,0,0,0,0,0,0,0,3,0,0,0,0,-8,0,-4]} 1. e4 {[%emt 0:00:01]} e5 {[%emt 0:00:08]} 2. Nf3 {[%emt 0:00:06]} Nc6 {[%emt 0:00:06]} 3. Bb5 {[%emt 0:00:03]} a6 {[%emt 0:00:12]} 4. Ba4 {[%emt 0:00:05]} Nf6 {[%emt 0:00:28]} 5. O-O {[%emt 0:00:07]} Nxe4 {[%emt 0:00:28]} 6. d4 {[%emt 0:00:07]} b5 {[%emt 0:00:09]} 7. Bb3 {[%emt 0:00:03]} d5 {[%emt 0:00:07]} 8. dxe5 {[%emt 0:00:04]} Be6 {[%emt 0:00:07]} 9. Be3 {[%emt 0:00:09]} Be7 {[%emt 0:00:54]} 10. c3 {[%emt 0:00:05]} Qd7 {[%emt 0:01:05]} 11. Nbd2 {[%emt 0:00:28]} Rd8 {[%emt 0:00:35]} 12. Nd4 {[%emt 0:10:49]} (12. Re1 $142) 12... Nxd2 $11 {[%emt 0:07:40]} 13. Bxd2 {[%emt 0:00:31]} Nxe5 {[%emt 0:09:35]} 14. Qh5 {[%emt 0:09:53] Black has an edge.} Nc4 {[%emt 0:06:00]} 15. Nxe6 {[%emt 0:12:08]} Qxe6 {[%emt 0:00:28]} 16. Bf4 {[%emt 0:00:07]} O-O {[%emt 0:05:13]} 17. Bxc7 {[%emt 0:06:18]} Rd7 {[%emt 0:00:27] [#] Hoping for ...g6.} 18. Rfe1 {[%emt 0:11:02]} Qg6 {[%emt 0:01:25] The position is equal.} 19. Qxg6 {[%emt 0:00:49]} hxg6 {[%emt 0:01:45]} 20. Bxc4 {[%emt 0:00:28]} dxc4 {[%emt 0:00:48]} 21. Ba5 {[%emt 0:00:20]} Rc8 {[%emt 0:01:26]} 22. Rad1 {[%emt 0:00:10]} Rxd1 {[%emt 0:00:05]} 23. Rxd1 {[%emt 0:00:03][%mdl 4096] Endgame. KRB-KRB} Kf8 {[%emt 0:01:44]} 24. Kf1 {[%emt 0:04:21]} Rc6 {[%emt 0:00:33]} 25. Rd7 {[%emt 0:03:37]} Ke8 {[%emt 0:00:32]} 26. Rb7 {[%emt 0:00:09]} Bc5 {[%emt 0:01:30]} 27. Bc7 {[%emt 0:01:19]} g5 {[%emt 0:01:07]} 28. Be5 {[%emt 0:01:43]} g6 {[%emt 0:00:17]} 29. Bb8 {[%emt 0:03:32]} Rb6 {[%emt 0:02:20]} 30. Rxb6 {[%emt 0:00:05] Weighted Error Value: White=0.04 (flawless) /Black=0.02 (flawless) .  OK:         	White=8     	Black=10     Best:        	White=1     	Black=1} 1/2-1/2

[Event "Chinese League Division-A 2024"]
[Site "Fuling Chongqing"]
[Date "2024.07.02"]
[Round "6.27"]
[White "Xie, Kaifan"]
[Black "Xiao, Tong"]
[Result "1-0"]
[ECO "E18"]
[WhiteElo "2376"]
[BlackElo "2518"]
[Annotator "RC"]
[PlyCount "159"]
[EventDate "2024.06.28"]
[EventType "team-tourn"]
[EventCountry "CHN"]
[SourceTitle "playchess.com"]
[Source "ChessBase"]
[SourceQuality "1"]
[TimeControl "40/5400+30:1800+30"]

1. d4 {[%emt 0:00:04]} Nf6 {[%emt 0:00:14]} 2. c4 {[%emt 0:00:25]} e6 {[%emt 0:00:10]} 3. Nf3 {[%emt 0:00:18]} b6 {[%emt 0:00:31]} 4. g3 {[%emt 0:00:35]} Bb4+ {[%emt 0:03:00]} 5. Bd2 {[%emt 0:00:19]} Be7 {[%emt 0:00:25]} 6. Nc3 {[%emt 0:00:10]} Bb7 {[%emt 0:01:08]} 7. Bg2 {[%emt 0:00:13]} O-O {[%emt 0:02:31]} 8. O-O {[%emt 0:06:33]} d5 {[%emt 0:02:47]} 9. cxd5 {[%emt 0:04:32]} exd5 {[%emt 0:00:56]} 10. Ne5 {[%emt 0:04:20]} Nbd7 {[%emt 0:06:32]} 11. Bf4 {[%emt 0:15:52]} c6 {[%emt 0:02:14]} 12. Rc1 {[%emt 0:04:19]} Nh5 {[%emt 0:06:15]} 13. Nxd7 {[%emt 0:05:44]} Qxd7 {[%emt 0:00:07]} 14. Nxd5 {[%emt 0:05:50]} cxd5 {[%emt 0:04:18]} 15. Rc7 {[%emt 0:00:21]} Qe6 {[%emt 0:00:09]} 16. Rxb7 {[%emt 0:00:13]} Nxf4 {[%emt 0:00:18]} 17. gxf4 {[%emt 0:00:07]} Bf6 {[%emt 0:00:16]} 18. Rc7 {[%emt 0:01:43]} Qd6 {[%emt 0:03:10]} 19. Rc2 {[%emt 0:09:39]} Qxf4 {[%emt 0:00:50]} 20. e3 {[%emt 0:02:28]} Qd6 {[%emt 0:13:17]} 21. Qf3 {[%emt 0:00:55]} Rac8 {[%emt 0:02:22]} 22. Rxc8 {[%emt 0:04:53]} Rxc8 {[%emt 0:00:02]} 23. Qxd5 {[%emt 0:00:06]} Qxd5 {[%emt 0:02:14]} 24. Bxd5 {[%emt 0:00:02]} g6 {[%emt 0:00:30]} 25. Bb3 {[%emt 0:01:03]} b5 {[%emt 0:00:47]} 26. Rd1 {[%emt 0:00:46]} a5 {[%emt 0:00:45]} 27. a4 {[%emt 0:03:22]} bxa4 {[%emt 0:01:29]} 28. Bxa4 {[%emt 0:01:52]} Rc4 {[%emt 0:00:29]} 29. Ra1 {[%emt 0:03:39]} Kg7 {[%emt 0:00:20]} 30. Kf1 {[%emt 0:00:37]} Be7 {[%emt 0:02:41]} 31. Bd1 {[%emt 0:03:40]} Bd8 {[%emt 0:03:28]} 32. Ke2 {[%emt 0:01:46]} Kh6 {[%emt 0:01:15]} 33. Kd3 {[%emt 0:01:42]} Rb4 {[%emt 0:00:22]} 34. b3 {[%emt 0:00:38]} f5 {[%emt 0:01:28]} 35. Rc1 {[%emt 0:02:30]} Kg5 {[%emt 0:05:45]} 36. Rc8 {[%emt 0:01:48]} Bb6 {[%emt 0:00:13]} 37. Kc3 {[%emt 0:10:05]} Kh4 {[%emt 0:04:42]} 38. Rh8 {[%emt 0:03:23]} h5 {[%emt 0:03:19]} 39. Rh6 {[%emt 0:01:30]} Kg5 {[%emt 0:00:29]} 40. Rh7 {[%emt 0:00:00]} Kh4 {[%emt 0:00:00]} 41. f4 {[%emt 0:13:20]} Bd8 {[%emt 0:05:21]} 42. Rd7 {[%emt 0:01:44]} Rb8 {[%emt 0:00:36]} 43. Rd6 {[%emt 0:01:20]} Rc8+ {[%emt 0:01:45]} 44. Kd2 {[%emt 0:03:05]} g5 {[%emt 0:00:30]} 45. Rh6 {[%emt 0:06:18]} g4 {[%emt 0:00:09]} 46. Bc2 {[%emt 0:00:05]} Rb8 {[%emt 0:08:50]} 47. Ke2 {[%emt 0:05:02]} Rb5 {[%emt 0:02:57]} 48. Rh7 {[%emt 0:00:50]} Bb6 {[%emt 0:00:42]} 49. Kd2 {[%emt 0:01:31]} a4 {[%emt 0:03:13]} 50. bxa4 {[%emt 0:00:30]} Ba5+ {[%emt 0:00:04]} 51. Kc1 {[%emt 0:01:05]} Rb6 {[%emt 0:02:35]} 52. Kd1 {[%emt 0:01:33]} Rb2 {[%emt 0:00:17]} 53. Kc1 {[%emt 0:01:07]} Ra2 {[%emt 0:00:10]} 54. d5 {[%emt 0:00:52]} Bb6 {[%emt 0:01:41]} 55. d6 {[%emt 0:01:00]} Ra1+ {[%emt 0:00:27]} 56. Kd2 {[%emt 0:00:31]} Rh1 {[%emt 0:00:41]} 57. Bxf5 {[%emt 0:00:14]} Rxh2+ {[%emt 0:00:01]} 58. Kd3 {[%emt 0:00:01]} Rh1 {[%emt 0:02:44]} 59. Bg6 {[%emt 0:01:06]} Rd1+ {[%emt 0:00:26]} 60. Ke2 {[%emt 0:00:12]} Rxd6 {[%emt 0:00:02]} 61. Rxh5+ {[%emt 0:00:08]} Kg3 {[%emt 0:00:01]} 62. Bf5 {[%emt 0:00:26]} Bd8 {[%emt 0:01:36]} 63. Rh1 {[%emt 0:00:33]} Kg2 {[%emt 0:00:24]} 64. Be4+ {[%emt 0:00:05]} Kg3 {[%emt 0:00:05]} 65. Rg1+ {[%emt 0:00:05]} Kh3 {[%emt 0:03:00]} 66. Bf5 {[%emt 0:00:10]} Ba5 {[%emt 0:00:10]} 67. Rxg4 {[%emt 0:00:20]} Rd2+ {[%emt 0:00:08]} 68. Kf3 {[%emt 0:00:06]} Kh2 {[%emt 0:00:03]} 69. Be4 {[%emt 0:01:05]} Ra2 {[%emt 0:00:08]} 70. Bc6 {[%emt 0:00:22]} Be1 {[%emt 0:00:17]} 71. f5 {[%emt 0:00:29]} Kh3 {[%emt 0:00:06]} 72. Rf4 {[%emt 0:00:23]} Bg3 {[%emt 0:00:13]} 73. Rc4 {[%emt 0:01:24]} Be5 {[%emt 0:00:14]} 74. Ke4 {[%emt 0:00:06]} Bg7 {[%emt 0:00:15]} 75. Kd5 {[%emt 0:00:18]} Re2 {[%emt 0:00:06]} 76. e4 {[%emt 0:00:15]} Kg4 {[%emt 0:00:13]} 77. a5 {[%emt 0:00:22]} Kg5 {[%emt 0:00:18]} 78. Ke6 {[%emt 0:00:32]} Ra2 {[%emt 0:00:10]} 79. Ra4 {[%emt 0:00:05]} Rc2 {[%emt 0:00:06]} 80. Bd5 {[%emt 0:00:07]} 1-0

[Event "Chinese League Division-A 2024"]
[Site "Fuling Chongqing"]
[Date "2024.07.02"]
[Round "6.28"]
[White "Liu, Qingnan"]
[Black "Wu, Yixing"]
[Result "1-0"]
[ECO "B11"]
[WhiteElo "2540"]
[BlackElo "2326"]
[Annotator "TA"]
[PlyCount "65"]
[EventDate "2024.06.28"]
[EventType "team-tourn"]
[EventCountry "CHN"]
[SourceTitle "playchess.com"]
[Source "ChessBase"]
[SourceQuality "1"]
[TimeControl "40/5400+30:1800+30"]

{[%evp 10,65,32,33,27,18,20,18,18,8,10,20,20,24,34,41,42,34,33,42,45,33,47,39,42,41,60,50,61,0,0,0,0,-14,1,-227,264,267,233,238,762,637,949,942,903,858,1203,1113,1131,930,1199,1191,1084,478,29989,29990,29994,29995]} 1. e4 {[%emt 0:00:08]} c6 {[%emt 0:00:02]} 2. Nc3 {[%emt 0:00:05]} d5 {[%emt 0:00:04]} 3. Nf3 {[%emt 0:00:03][%cal Bg1f3,Bf3e5,Be5c6][%mdl 32]} dxe4 {[%emt 0:00:07]} 4. Nxe4 {[%emt 0:00:02]} Nf6 {[%emt 0:00:06]} 5. Qe2 {[%emt 0:00:03]} Nxe4 {[%emt 0:00:05]} 6. Qxe4 {[%emt 0:00:03]} Nd7 {[%emt 0:00:05]} 7. Bc4 {[%emt 0:00:03] And now Ng5 would win.} Nf6 {[%emt 0:00:04] [#]} 8. Ne5 $1 {[%emt 0:00:02][%csl Ge5][%cal Rc4f7]} e6 {[%emt 0:00:05] The position is equal.} 9. Qe2 {[%emt 0:00:01]} b5 {[%emt 0:00:07]} 10. Bd3 {[%emt 0:00:02][%cal Oa2a4]} (10. Nxc6 Qc7 11. Bd3 (11. Bxb5 $2 a6 $19) 11... a6 $11 (11... Qxc6 $2 12. Bxb5 $18)) 10... Qc7 {[%emt 0:00:15]} 11. a4 {[%emt 0:00:03]} Bd6 {[%emt 0:00:12] [#]} 12. Nxc6 {[%emt 0:00:03]} b4 {[%emt 0:00:04][%cal Oa7a6]} (12... Qxc6 $2 13. Bxb5 $18 (13. axb5 $2 Qxg2 14. Qf1 Qd5 $19) (13. axb5 $2 Qxg2 14. Qf1 Qd5 $19)) 13. Nd4 {[%emt 0:00:03]} a6 {[%emt 0:00:03][%cal Oe8g8] Dodges Nb5} 14. Nf5 {[%emt 0:00:11]} Be5 {[%emt 0:00:05]} 15. Nxg7+ {[%emt 0:00:07]} Kf8 $1 {[%emt 0:00:03]} 16. Nh5 {[%emt 0:00:06]} Nxh5 {[%emt 0:00:03]} 17. Qxh5 {[%emt 0:00:05]} Bb7 {[%emt 0:00:03] Repels Be4} 18. Qh4 {[%emt 0:00:09]} (18. Bxh7 $2 f5 19. Qh6+ Qg7 20. Qxg7+ Kxg7 $19) 18... Rg8 {[%emt 0:00:16]} 19. Bxh7 {[%emt 0:00:10]} (19. Qxb4+ Bd6 20. Qc3 Bxg2 $11) ({Better is} 19. Bf1 $14) 19... Rxg2 $11 {[%emt 0:00:23] Threatens to win with ...f5.} 20. d4 {[%emt 0:00:14]} Bg7 {[%emt 0:10:15] Strongly threatening ...f5.} 21. Bd2 {[%emt 0:00:34]} f5 {[%emt 0:01:46] ...a5 is the strong threat.} 22. h3 $2 {[%emt 0:00:57] [#]} (22. Bxb4+ $11 Ke8 23. O-O-O) 22... Qf7 $4 {[%emt 0:13:48][%mdl 8192]} (22... a5 $1 $19 {[%cal Ob7f3] and all is fine. White must now prevent ...Bf3!} 23. Rc1 (23. O-O-O $2 Be4 $19) 23... Bf3) 23. Bxb4+ $18 {[%emt 0:01:39]} Ke8 {[%emt 0:00:09][%cal Bf8e8,Be8d8,Bd8c7,Bc7c6][%mdl 32] [#] Hoping for ...Bf6.} 24. Bg8 $1 {[%emt 0:00:02]} ({Don't go for} 24. O-O-O $2 Bf6 25. Qf4 Bg5 $19 (25... Qxh7 $2 26. Kb1 $19) (25... Qxh7 $2 26. Kb1 $19)) 24... Qd7 {[%emt 0:10:25]} (24... Qf6 25. Qxf6 Bxf6) 25. O-O-O {[%emt 0:01:57][%cal Od4d5]} Bf8 {[%emt 0:19:07]} 26. Qh5+ {[%emt 0:15:15]} Kd8 {[%emt 0:00:06]} 27. d5 {[%emt 0:03:14]} Bxd5 {[%emt 0:08:48]} 28. Bxe6 {[%emt 0:00:48]} Qxe6 {[%emt 0:00:35]} 29. Rxd5+ {[%emt 0:00:04]} Kc7 {[%emt 0:01:59]} 30. Ba5+ {[%emt 0:00:26]} Kc6 {[%emt 0:01:48]} 31. Rxf5 {[%emt 0:00:37]} (31. Rd2 $142 {White threatens Qf3+ and mate.} Rb8 32. Qf3+ (32. Rhd1 Bh6 $18) 32... Qe4 33. Qc3+ Kb7 34. Rd7+ Ka8 35. Re1 Qf4+ 36. Kb1) 31... Bh6+ {[%emt 0:02:19]} (31... Qh6+ $18 32. Qxh6+ Bxh6+ 33. Bd2 Bxd2+ 34. Kxd2 Rd8+ 35. Kc3 Kb7) 32. Kb1 {[%emt 0:00:05]} Rag8 {[%emt 0:01:03]} 33. Qf3+ {[%emt 0:00:04] Weighted Error Value: White=0.48/Black=0.54.  Loses game:     	White=1     	---        Missed win:     	---       	Black=1      Mistake:       	White=1     	Black=1      Inaccurate:     	---       	Black=1      OK:         	White=8     	Black=11     Best:        	White=3     	Black=3      Strong:       	White=1     	Black=1      Brilliant:      	White=1     	---} 1-0